fUSD/lending_fUSD_20240517
["ID","MTS","AMOUNT","RATE_DAILY","PERIOD"]
[327320920,1715985041280,-500.0,0.00012999,2]
[327320921,1715985041289,-500.0,0.00012999,2]
[327320922,1715985041299,-500.0,0.00012999,2]
[327320923,1715985041308,-559.3,0.00012999,2]
[327320924,1715985041317,-500.0,0.00012999,2]
[327320925,1715985041326,-500.0,0.00012999,2]
[327320926,1715985041335,-421.91,0.00012999,2]
[327320927,1715985041344,-500.0,0.00012999,2]
[327320928,1715985041353,-500.0,0.00012999,2]
[327320929,1715985041363,-500.0,0.00012999,2]
[327320930,1715985041372,-500.0,0.00012999,2]
[327320931,1715985041380,-500.0,0.00012999,2]
[327320932,1715985041389,-500.0,0.00012999,2]
[327320933,1715985041398,-500.0,0.00012999,2]
[327320934,1715985041407,-500.0,0.00012999,2]
[327320935,1715985041416,-446.26,0.00012999,2]
[327320936,1715985041425,-500.0,0.00012999,2]
[327320937,1715985041434,-500.0,0.00012999,2]
[327320938,1715985041443,-500.0,0.00012999,2]
[327320939,1715985041452,-500.0,0.00012999,2]
[327320940,1715985041463,-500.0,0.00012999,2]
[327320941,1715985041473,-500.0,0.00012999,2]
[327320942,1715985041482,-500.0,0.00012999,2]
[327320943,1715985041491,-500.0,0.00012999,2]
[327320944,1715985041500,-500.0,0.00012999,2]
[327320945,1715985041511,-500.0,0.00012999,2]
[327320946,1715985041520,-500.0,0.00012999,2]
[327320947,1715985041529,-500.0,0.00012999,2]
[327320948,1715985041539,-500.0,0.00012999,2]
[327320949,1715985041550,-500.0,0.00012999,2]
[327320950,1715985041559,-500.0,0.00012999,2]
[327320951,1715985041569,-500.0,0.00012999,2]
[327320952,1715985041578,-500.0,0.00012999,2]
[327320953,1715985041587,-500.0,0.00012999,2]
[327320954,1715985041596,-500.0,0.00012999,2]
[327320955,1715985041605,-500.0,0.00012999,2]
[327320956,1715985041614,-372.01,0.00012999,2]
[327320957,1715985041623,-500.0,0.00012999,2]
[327320958,1715985041632,-500.0,0.00012999,2]
[327320959,1715985041641,-500.0,0.00012999,2]
[327320960,1715985041650,-500.0,0.00012999,2]
[327320961,1715985041659,-500.0,0.00012999,2]
[327320962,1715985041668,-500.0,0.00012999,2]
[327320963,1715985041679,-500.0,0.00012999,2]
[327320964,1715985041689,-500.0,0.00012999,2]
[327320965,1715985041700,-500.0,0.00012999,2]
[327320966,1715985041709,-500.0,0.00012999,2]
[327320967,1715985041718,-500.0,0.00012999,2]
[327320968,1715985041727,-276.5851796,0.00012999,2]
[327320969,1715985041738,-500.0,0.00012999,2]
[327320970,1715985041748,-500.0,0.00012999,2]
[327320971,1715985041757,-500.0,0.00012999,2]
[327320972,1715985041766,-500.0,0.00012999,2]
[327320973,1715985041775,-500.0,0.00012999,2]
[327320974,1715985041787,-500.0,0.00012999,2]
[327320975,1715985041796,-500.0,0.00012999,2]
[327320976,1715985041805,-546.32,0.00012999,2]
[327320977,1715985041815,-500.0,0.00012999,2]
[327320978,1715985041825,-500.0,0.00012999,2]
[327320979,1715985041835,-500.0,0.00012999,2]
[327320980,1715985041844,-500.0,0.00012999,2]
[327320981,1715985041854,-500.0,0.00012999,2]
[327320982,1715985041863,-500.0,0.00012999,2]
[327320983,1715985041872,-500.0,0.00012999,2]
[327320984,1715985041882,-500.0,0.00012999,2]
[327320985,1715985041891,-500.0,0.00012999,2]
[327320986,1715985041902,-500.0,0.00012999,2]
[327320987,1715985041913,-500.0,0.00012999,2]
[327320988,1715985041922,-500.0,0.00012999,2]
[327320989,1715985041931,-500.0,0.00012999,2]
[327320990,1715985041942,-500.0,0.00012999,2]
[327320991,1715985041951,-500.0,0.00012999,2]
[327320992,1715985041962,-266.31,0.00012999,2]
[327320993,1715985041972,-500.0,0.00012999,2]
[327320994,1715985041981,-500.0,0.00012999,2]
[327320995,1715985041992,-624.18,0.00012999,2]
[327320996,1715985042003,-211.49175,0.00012999,2]
[327320997,1715985042012,-500.0,0.00012999,2]
[327320998,1715985042023,-500.0,0.00012999,2]
[327320999,1715985042032,-612.21,0.00012999,2]
[327321000,1715985042041,-500.0,0.00012999,2]
[327321001,1715985042051,-500.0,0.00012999,2]
[327321002,1715985042060,-500.0,0.00012999,2]
[327321003,1715985042070,-500.0,0.00012999,2]
[327321004,1715985042078,-500.0,0.00012999,2]
[327321005,1715985042087,-500.0,0.00012999,2]
[327321006,1715985042097,-502.64,0.00012999,2]
[327321007,1715985042106,-500.0,0.00012999,2]
[327321008,1715985042114,-500.0,0.00012999,2]
[327321009,1715985042124,-500.0,0.00012999,2]
[327321010,1715985042133,-500.0,0.00012999,2]
[327321011,1715985042142,-500.0,0.00012999,2]
[327321012,1715985042152,-500.0,0.00012999,2]
[327321013,1715985042161,-500.0,0.00012999,2]
[327321014,1715985042170,-500.0,0.00012999,2]
[327321015,1715985042179,-321793.66971949,0.00013,2]
[327321016,1715985042281,-327.9420034,0.00013,2]
[327321017,1715985042293,-1100.0,0.00013,2]
[327321018,1715985042311,-5640.52606362,0.00013,2]
[327321019,1715985042324,-5080.45712169,0.00013,2]
[327321020,1715985042335,-17327.97442883,0.00013,2]
[327321021,1715985042345,-5000.0,0.00013,2]
[327321022,1715985042415,-256.98426534,0.00012999,2]
[327321023,1715985042432,-243.01573466,0.00012999,2]
[327321024,1715985042441,-308.9428503,0.00012999,2]
[327321025,1715985042455,-191.0571497,0.00012999,2]
[327321026,1715985042466,-500.0,0.00012999,2]
[327321027,1715985042476,-281.6698363,0.00013,2]
[327321028,1715985042488,-714.3619255,0.00013,2]
[327321029,1715985042501,-1176.17764742,0.00013,2]
[327321030,1715985042525,-595.64436099,0.00013,2]
[327321044,1715985043274,-1552.16653,0.00013,2]
[327321049,1715985045955,-671.82166869,0.00013,2]
[327321050,1715985045967,-28767.9015639,0.00013,2]
[327321051,1715985045977,-1832.78826,0.00013,2]
[327321052,1715985046041,-2825.04658628,0.00013,2]
[327321053,1715985046051,-11339.37648721,0.00013,2]
[327321054,1715985046063,-32439.39449639,0.00013,2]
[327321055,1715985046075,-897.58999998,0.00013,2]
[327321056,1715985046125,-91993.01095283,0.00013,2]
[327321057,1715985046134,-25532.27414903,0.00013,2]
[327321058,1715985046214,-403.50573735,0.00013,2]
[327321059,1715985046226,-9323.77378296,0.00013,2]
[327321060,1715985046237,-103019.39783771,0.00013,2]
[327321061,1715985046390,-35155.96930697,0.00013,2]
[327321139,1715986232324,-158.1,8.992e-05,2]
[327321140,1715986232333,-688.79096572,8.992e-05,2]
[327321141,1715986232343,-23900.0,0.00010551,2]
[327321142,1715986232352,-1413.13549049,0.00010619,7]
[327321143,1715986232361,-423.39,0.00010636,2]
[327321144,1715986232370,-2058.6,0.0001085,2]
[327321145,1715986232379,-250.0,0.00010894,2]
[327321146,1715986232388,-171.43,0.0001091,2]
[327321147,1715986232396,-150.0,0.00010958,2]
[327321148,1715986232406,-12278.56,0.00010959,2]
[327321149,1715986232415,-803.4540425,0.00011,2]
[327321150,1715986232423,-1663.1,0.00011014,2]
[327321151,1715986232432,-150.0,0.00011041,2]
[327321152,1715986232442,-197.16050136,0.00011178,7]
[327321153,1715986232450,-155.0,0.00011178,2]
[327321154,1715986232459,-2357.86048009,0.00011178,2]
[327321155,1715986232468,-243.18749239,0.00011178,2]
[327321156,1715986232477,-2749.14872556,0.00011178,2]
[327321157,1715986232489,-277.09199067,0.00011178,2]
[327321158,1715986232497,-301.46762763,0.0001118,2]
[327321159,1715986232514,-4611.58520454,0.0001118,2]
[327321160,1715986232525,-11285.24226041,0.0001118,2]
[327321161,1715986232537,-2250.30156203,0.0001118,2]
[327321162,1715986232549,-1916.80238943,0.0001118,2]
[327321163,1715986232561,-1178.45951756,0.0001118,2]
[327321164,1715986232573,-1133.16129937,0.0001118,2]
[327321165,1715986232585,-2275.48656386,0.0001118,2]
[327321166,1715986232595,-293446.89456214,0.0001118,2]
[327321167,1715986232622,-19882.18885696,0.0001118,2]
[327321168,1715986232634,-11950.02425362,0.0001118,2]
[327321170,1715986232643,-1163.71,0.0001118,2]
[327321171,1715986232652,-175.3,0.00011199,2]
[327321172,1715986232661,-250.0,0.00011229,2]
[327321173,1715986232670,-277.77,0.00011272,2]
[327321174,1715986232679,-406.4,0.00011476,2]
[327321175,1715986232688,-165.82,0.00011647,2]
[327321176,1715986232697,-499.99,0.00011853,2]
[327321177,1715986232706,-1326.1921984,0.00011898,2]
[327321178,1715986232715,-1326.19219833,0.00011898,2]
[327321179,1715986232723,-1326.19219833,0.00011898,2]
[327321180,1715986232733,-1326.19219833,0.00011898,2]
[327321181,1715986232742,-1326.19219833,0.00011898,2]
[327321182,1715986232752,-423.39,0.00011965,2]
[327321183,1715986232761,-410.10769959,0.00012,2]
[327321184,1715986232770,-5000.0,0.00012,2]
[327321185,1715986232779,-892.95845559,0.00012,2]
[327321186,1715986232788,-170.32,0.00012033,2]
[327321187,1715986232797,-160.0,0.00012054,2]
[327321188,1715986232807,-577.54,0.00012055,2]
[327321189,1715986232818,-278.34,0.00012084,2]
[327321190,1715986232827,-5669.0594976,0.00012087,2]
[327321191,1715986238439,-164.39342756,0.00011179,2]
[327321192,1715986238448,-1085.60657244,0.00012087,2]
[327321193,1715986238532,-23245.32392996,0.00012087,2]
[327321194,1715986238542,-364.54,0.00012087,2]
[327321195,1715986238552,-4417.99,0.00012087,2]
[327321196,1715986238561,-19999.99,0.00012087,2]
[327321197,1715986238570,-1326.19219833,0.00012091,2]
[327321198,1715986238579,-180.0,0.00012175,2]
[327321199,1715986238588,-162.16161132,0.00012228,2]
[327321200,1715986238597,-171.43,0.00012273,2]
[327321201,1715986238607,-1326.19219833,0.00012293,2]
[327321202,1715986238616,-299.99,0.00012328,2]
[327321203,1715986238625,-500.0,0.00012328,2]
[327321204,1715986238635,-500.0,0.00012328,2]
[327321205,1715986238646,-500.0,0.00012328,2]
[327321206,1715986238657,-585.48,0.00012328,2]
[327321207,1715986238667,-500.0,0.00012328,2]
[327321208,1715986238676,-500.0,0.00012328,2]
[327321209,1715986238685,-500.0,0.00012328,2]
[327321210,1715986238694,-500.0,0.00012328,2]
[327321211,1715986238703,-500.0,0.00012328,2]
[327321212,1715986238713,-500.0,0.00012328,2]
[327321213,1715986238723,-500.0,0.00012328,2]
[327321214,1715986238732,-512.37615302,0.00012328,2]
[327321216,1715986238741,-500.0,0.00012328,2]
[327321218,1715986238751,-500.0,0.00012328,2]
[327321220,1715986238760,-500.0,0.00012328,2]
[327321222,1715986238769,-500.0,0.00012328,2]
[327321224,1715986238778,-500.0,0.00012328,2]
[327321226,1715986238787,-401.79644752,0.00012328,2]
[327321228,1715986238796,-500.0,0.00012328,2]
[327321230,1715986238805,-500.0,0.00012328,2]
[327321231,1715986238814,-500.0,0.00012328,2]
[327321233,1715986238823,-159.14658625,0.00012328,2]
[327321235,1715986238832,-500.0,0.00012328,2]
[327321237,1715986238841,-232.18112114,0.00012328,2]
[327321239,1715986238851,-150.0,0.00012328,2]
[327321241,1715986238860,-500.0,0.00012328,2]
[327321242,1715986238869,-500.0,0.00012328,2]
[327321244,1715986238879,-500.0,0.00012328,2]
[327321246,1715986238889,-500.0,0.00012328,2]
[327321248,1715986238898,-531.46013872,0.00012328,2]
[327321250,1715986238907,-500.0,0.00012328,2]
[327321252,1715986238916,-500.0,0.00012328,2]
[327321254,1715986238925,-500.0,0.00012328,2]
[327321256,1715986238934,-500.0,0.00012328,2]
[327321258,1715986238943,-500.0,0.00012328,2]
[327321260,1715986238952,-500.0,0.00012328,2]
[327321262,1715986238961,-500.0,0.00012328,2]
[327321264,1715986238970,-500.0,0.00012328,2]
[327321266,1715986238979,-506.12165387,0.00012328,2]
[327321268,1715986238987,-500.0,0.00012328,2]
[327321270,1715986238996,-500.0,0.00012328,2]
[327321271,1715986239006,-500.0,0.00012328,2]
[327321273,1715986239015,-500.0,0.00012328,2]
[327321275,1715986239024,-618.11,0.00012328,2]
[327321277,1715986239033,-500.0,0.00012328,2]
[327321279,1715986239043,-500.0,0.00012328,2]
[327321281,1715986239052,-500.0,0.00012328,2]
[327321283,1715986239061,-500.0,0.00012328,2]
[327321285,1715986239070,-500.0,0.00012328,2]
[327321287,1715986239080,-500.0,0.00012328,2]
[327321289,1715986239089,-500.0,0.00012328,2]
[327321291,1715986239099,-500.0,0.00012328,2]
[327321293,1715986239109,-500.0,0.00012328,2]
[327321295,1715986239118,-500.0,0.00012328,2]
[327321297,1715986239127,-500.0,0.00012328,2]
[327321299,1715986239136,-500.0,0.00012328,2]
[327321301,1715986239146,-500.0,0.00012328,2]
[327321303,1715986239159,-500.0,0.00012328,2]
[327321305,1715986239169,-409.79,0.00012328,2]
[327321307,1715986239179,-500.0,0.00012328,2]
[327321309,1715986239188,-500.0,0.00012328,2]
[327321311,1715986239199,-500.0,0.00012328,2]
[327321313,1715986239208,-500.0,0.00012328,2]
[327321315,1715986239218,-500.0,0.00012328,2]
[327321317,1715986239227,-500.0,0.00012328,2]
[327321319,1715986239239,-500.0,0.00012328,2]
[327321321,1715986239249,-500.0,0.00012328,2]
[327321323,1715986239258,-500.0,0.00012328,2]
[327321324,1715986239267,-649.01,0.00012328,2]
[327321325,1715986239276,-500.0,0.00012328,2]
[327321326,1715986239286,-500.0,0.00012328,2]
[327321327,1715986239295,-500.0,0.00012328,2]
[327321328,1715986239304,-500.0,0.00012328,2]
[327321329,1715986239313,-500.0,0.00012328,2]
[327321330,1715986239322,-500.0,0.00012328,2]
[327321331,1715986239332,-500.0,0.00012328,2]
[327321332,1715986239341,-500.0,0.00012328,2]
[327321333,1715986239350,-518.34,0.00012328,2]
[327321334,1715986239360,-500.0,0.00012328,2]
[327321335,1715986239370,-500.0,0.00012328,2]
[327321336,1715986239379,-500.0,0.00012328,2]
[327321337,1715986239388,-500.0,0.00012328,2]
[327321338,1715986239397,-500.0,0.00012328,2]
[327321339,1715986239407,-500.0,0.00012328,2]
[327321340,1715986239416,-500.0,0.00012328,2]
[327321341,1715986239426,-507.16359393,0.00012328,2]
[327321342,1715986239435,-500.0,0.00012328,2]
[327321343,1715986239444,-500.0,0.00012328,2]
[327321344,1715986239454,-500.0,0.00012328,2]
[327321345,1715986239463,-500.0,0.00012328,2]
[327321346,1715986239472,-161.27926516,0.00012328,2]
[327321348,1715986239481,-506.33440291,0.00012328,2]
[327321349,1715986239490,-500.0,0.00012328,2]
[327321350,1715986239499,-500.0,0.00012328,2]
[327321351,1715986239508,-553.61232051,0.00012328,2]
[327321352,1715986239517,-500.0,0.00012328,2]
[327321353,1715986239527,-500.0,0.00012328,2]
[327321354,1715986239536,-500.0,0.00012328,2]
[327321355,1715986239545,-500.0,0.00012328,2]
[327321356,1715986239554,-500.0,0.00012328,2]
[327321357,1715986239563,-500.0,0.00012328,2]
[327321358,1715986239572,-500.0,0.00012328,2]
[327321359,1715986239582,-500.0,0.00012328,2]
[327321360,1715986239590,-500.0,0.00012328,2]
[327321361,1715986239599,-500.0,0.00012328,2]
[327321362,1715986239609,-500.0,0.00012328,2]
[327321363,1715986239618,-500.0,0.00012328,2]
[327321364,1715986239628,-609.11483428,0.00012328,2]
[327321365,1715986239637,-500.0,0.00012328,2]
[327321366,1715986239647,-515.08552945,0.00012328,2]
[327321367,1715986239656,-500.0,0.00012328,2]
[327321368,1715986239665,-500.0,0.00012328,2]
[327321369,1715986239675,-500.0,0.00012328,2]
[327321370,1715986239684,-500.0,0.00012328,2]
[327321371,1715986239693,-502.64,0.00012328,2]
[327321372,1715986239702,-500.0,0.00012328,2]
[327321373,1715986239711,-621.41,0.00012328,2]
[327321374,1715986239721,-500.0,0.00012328,2]
[327321375,1715986239730,-509.79138112,0.00012328,2]
[327321376,1715986239740,-500.0,0.00012328,2]
[327321377,1715986239749,-500.0,0.00012328,2]
[327321378,1715986239759,-273.33,0.00012328,2]
[327321379,1715986239768,-500.0,0.00012328,2]
[327321380,1715986239777,-500.0,0.00012328,2]
[327321381,1715986239786,-613.64011275,0.00012328,2]
[327321382,1715986239795,-500.0,0.00012328,2]
[327321383,1715986239804,-500.0,0.00012328,2]
[327321384,1715986239814,-500.0,0.00012328,2]
[327321385,1715986239823,-500.0,0.00012328,2]
[327321386,1715986239832,-610.34,0.00012328,2]
[327321387,1715986239842,-517.12660572,0.00012328,2]
[327321388,1715986239851,-500.0,0.00012328,2]
[327321389,1715986239861,-507.04024438,0.00012328,2]
[327321390,1715986239870,-500.0,0.00012328,2]
[327321391,1715986239882,-500.0,0.00012328,2]
[327321392,1715986239902,-500.0,0.00012328,2]
[327321393,1715986239924,-500.0,0.00012328,2]
[327321394,1715986239946,-500.0,0.00012328,2]
[327321395,1715986239969,-500.0,0.00012328,2]
[327321396,1715986239994,-511.14356944,0.00012328,2]
[327321397,1715986240017,-182.14,0.00012328,2]
[327321398,1715986240037,-500.0,0.00012328,2]
[327321399,1715986240060,-500.0,0.00012328,2]
[327321400,1715986240084,-500.0,0.00012328,2]
[327321401,1715986240103,-500.0,0.00012328,2]
[327321402,1715986240113,-500.0,0.00012328,2]
[327321403,1715986240123,-500.0,0.00012328,2]
[327321404,1715986240133,-500.0,0.00012328,2]
[327321405,1715986240142,-500.0,0.00012328,2]
[327321406,1715986240153,-500.0,0.00012328,2]
[327321407,1715986240167,-500.0,0.00012328,2]
[327321408,1715986240176,-500.0,0.00012328,2]
[327321409,1715986240186,-500.0,0.00012328,2]
[327321410,1715986240196,-500.0,0.00012328,2]
[327321411,1715986240207,-500.0,0.00012328,2]
[327321412,1715986240216,-500.0,0.00012328,2]
[327321413,1715986240226,-500.0,0.00012328,2]
[327321414,1715986240237,-500.0,0.00012328,2]
[327321415,1715986240247,-500.0,0.00012328,2]
[327321416,1715986240257,-422.72,0.00012328,2]
[327321417,1715986240267,-500.0,0.00012328,2]
[327321418,1715986240277,-567.7,0.00012328,2]
[327321419,1715986240287,-500.0,0.00012328,2]
[327321420,1715986240297,-500.0,0.00012328,2]
[327321422,1715986240307,-500.0,0.00012328,2]
[327321423,1715986240316,-537.12577876,0.00012328,2]
[327321424,1715986240326,-500.0,0.00012328,2]
[327321425,1715986240335,-500.0,0.00012328,2]
[327321426,1715986240344,-500.0,0.00012328,2]
[327321427,1715986240354,-500.0,0.00012328,2]
[327321428,1715986240363,-500.0,0.00012328,2]
[327321429,1715986240373,-500.0,0.00012328,2]
[327321430,1715986240382,-500.0,0.00012328,2]
[327321431,1715986240392,-500.0,0.00012328,2]
[327321432,1715986240401,-500.0,0.00012328,2]
[327321433,1715986240410,-500.0,0.00012328,2]
[327321434,1715986240419,-500.0,0.00012328,2]
[327321435,1715986240428,-500.0,0.00012328,2]
[327321436,1715986240438,-500.0,0.00012328,2]
[327321437,1715986240447,-500.0,0.00012328,2]
[327321438,1715986240456,-500.0,0.00012328,2]
[327321439,1715986240465,-500.0,0.00012328,2]
[327321440,1715986240475,-500.0,0.00012328,2]
[327321441,1715986240484,-500.0,0.00012328,2]
[327321442,1715986240493,-500.0,0.00012328,2]
[327321443,1715986240503,-500.0,0.00012328,2]
[327321444,1715986240512,-535.50393337,0.00012328,2]
[327321445,1715986240522,-500.0,0.00012328,2]
[327321446,1715986240531,-500.0,0.00012328,2]
[327321447,1715986240541,-500.0,0.00012328,2]
[327321448,1715986240551,-500.0,0.00012328,2]
[327321449,1715986240560,-500.0,0.00012328,2]
[327321450,1715986240569,-500.0,0.00012328,2]
[327321451,1715986240579,-500.0,0.00012328,2]
[327321452,1715986240589,-150.0,0.00012328,2]
[327321453,1715986240599,-500.0,0.00012328,2]
[327321454,1715986240609,-500.0,0.00012328,2]
[327321455,1715986240618,-514.64686514,0.00012328,2]
[327321456,1715986240628,-500.0,0.00012328,2]
[327321457,1715986240637,-500.0,0.00012328,2]
[327321458,1715986240646,-500.0,0.00012328,2]
[327321459,1715986240656,-327.87950345,0.00012328,2]
[327321460,1715986240665,-500.0,0.00012328,2]
[327321461,1715986240674,-500.0,0.00012328,2]
[327321462,1715986240684,-500.0,0.00012328,2]
[327321463,1715986240693,-500.0,0.00012328,2]
[327321464,1715986240702,-500.0,0.00012328,2]
[327321465,1715986240712,-500.0,0.00012328,2]
[327321466,1715986240721,-500.0,0.00012328,2]
[327321467,1715986240730,-575.59308245,0.00012328,2]
[327321468,1715986240740,-2930.51036644,0.00012328,2]
[327321469,1715986240749,-500.0,0.00012328,2]
[327321470,1715986240758,-500.0,0.00012328,2]
[327321471,1715986240768,-500.0,0.00012328,2]
[327321472,1715986240777,-500.0,0.00012328,2]
[327321473,1715986240786,-500.0,0.00012328,2]
[327321474,1715986240795,-500.0,0.00012328,2]
[327321475,1715986240805,-497.89,0.00012328,2]
[327321476,1715986240813,-500.0,0.00012328,2]
[327321477,1715986240823,-500.0,0.00012328,2]
[327321478,1715986240832,-500.0,0.00012328,2]
[327321479,1715986240841,-214.79553314,0.00012328,2]
[327321480,1715986240850,-500.0,0.00012328,2]
[327321481,1715986240860,-520.34206407,0.00012328,2]
[327321482,1715986240869,-500.0,0.00012328,2]
[327321483,1715986240878,-255.02387826,0.00012328,2]
[327321484,1715986240887,-500.0,0.00012328,2]
[327321485,1715986240896,-510.17747843,0.00012328,2]
[327321486,1715986240905,-507.4987605,0.00012328,2]
[327321487,1715986240913,-500.0,0.00012328,2]
[327321488,1715986240922,-500.0,0.00012328,2]
[327321489,1715986240931,-500.0,0.00012328,2]
[327321490,1715986240940,-500.0,0.00012328,2]
[327321491,1715986240949,-500.0,0.00012328,2]
[327321492,1715986240958,-253.46717725,0.00012328,2]
[327321493,1715986240966,-289.55814072,0.00012328,2]
[327321494,1715986240976,-500.0,0.00012328,2]
[327321495,1715986240985,-492.09143245,0.00012328,2]
[327321496,1715986240994,-500.0,0.00012328,2]
[327321497,1715986241003,-500.0,0.00012328,2]
[327321498,1715986241012,-510.71746607,0.00012328,2]
[327321499,1715986241022,-500.0,0.00012328,2]
[327321500,1715986241031,-500.0,0.00012328,2]
[327321501,1715986241040,-500.0,0.00012328,2]
[327321502,1715986241049,-500.0,0.00012328,2]
[327321503,1715986241058,-500.0,0.00012328,2]
[327321504,1715986241067,-500.0,0.00012328,2]
[327321505,1715986241077,-500.0,0.00012328,2]
[327321506,1715986241085,-500.0,0.00012328,2]
[327321507,1715986241095,-577.4638581,0.00012328,2]
[327321508,1715986241104,-500.0,0.00012328,2]
[327321509,1715986241113,-500.0,0.00012328,2]
[327321510,1715986241122,-500.0,0.00012328,2]
[327321511,1715986241131,-500.0,0.00012328,2]
[327321512,1715986241141,-500.0,0.00012328,2]
[327321513,1715986241151,-500.0,0.00012328,2]
[327321514,1715986241164,-500.0,0.00012328,2]
[327321515,1715986241173,-500.0,0.00012328,2]
[327321516,1715986241182,-500.0,0.00012328,2]
[327321517,1715986241319,-500.0,0.00012328,2]
[327321518,1715986241329,-510.10649987,0.00012328,2]
[327321519,1715986241339,-500.0,0.00012328,2]
[327321520,1715986241347,-500.0,0.00012328,2]
[327321521,1715986241357,-500.0,0.00012328,2]
[327321522,1715986241366,-500.0,0.00012328,2]
[327321523,1715986241375,-500.0,0.00012328,2]
[327321524,1715986241384,-500.0,0.00012328,2]
[327321525,1715986241393,-500.0,0.00012328,2]
[327321526,1715986241402,-156.03,0.00012328,2]
[327321527,1715986241411,-500.0,0.00012328,2]
[327321528,1715986241421,-500.0,0.00012328,2]
[327321529,1715986241432,-500.0,0.00012328,2]
[327321530,1715986241442,-511.11200082,0.00012328,2]
[327321531,1715986241453,-500.0,0.00012328,2]
[327321532,1715986241462,-500.0,0.00012328,2]
[327321533,1715986241471,-500.0,0.00012328,2]
[327321534,1715986241480,-500.0,0.00012328,2]
[327321535,1715986241488,-500.0,0.00012328,2]
[327321536,1715986241498,-262.76,0.00012328,2]
[327321537,1715986241507,-500.0,0.00012328,2]
[327321538,1715986241518,-500.0,0.00012328,2]
[327321539,1715986241527,-500.0,0.00012328,2]
[327321540,1715986241536,-500.0,0.00012328,2]
[327321541,1715986241545,-500.0,0.00012328,2]
[327321542,1715986241555,-500.0,0.00012328,2]
[327321543,1715986241563,-500.0,0.00012328,2]
[327321544,1715986241574,-500.0,0.00012328,2]
[327321545,1715986241584,-500.0,0.00012328,2]
[327321546,1715986241594,-500.0,0.00012328,2]
[327321547,1715986241604,-500.0,0.00012328,2]
[327321548,1715986241613,-500.0,0.00012328,2]
[327321549,1715986241622,-502.77796776,0.00012328,2]
[327321550,1715986241631,-500.0,0.00012328,2]
[327321551,1715986241640,-500.0,0.00012328,2]
[327321552,1715986241650,-500.0,0.00012328,2]
[327321553,1715986241659,-500.0,0.00012328,2]
[327321554,1715986241669,-500.0,0.00012328,2]
[327321555,1715986241678,-500.0,0.00012328,2]
[327321556,1715986241687,-500.0,0.00012328,2]
[327321557,1715986241696,-500.0,0.00012328,2]
[327321558,1715986241705,-500.0,0.00012328,2]
[327321559,1715986241714,-500.0,0.00012328,2]
[327321560,1715986241722,-500.0,0.00012328,2]
[327321561,1715986241733,-500.0,0.00012328,2]
[327321562,1715986241742,-500.0,0.00012328,2]
[327321563,1715986241751,-230.91,0.00012328,2]
[327321564,1715986241760,-500.0,0.00012328,2]
[327321565,1715986241769,-500.0,0.00012328,2]
[327321566,1715986241778,-249.89740791,0.00012328,2]
[327321567,1715986241787,-500.0,0.00012328,2]
[327321568,1715986241796,-500.0,0.00012328,2]
[327321569,1715986241807,-500.0,0.00012328,2]